[Event "Early-Titled-Tuesday-Blitz-October-24-2023"]
[Site "Chess.com"]
[Date "2023.10.24"]
[Round "10"]
[White "WPWPWP-2015"]
[Black "krzyzan94"]
[Result "1-0"]
[WhiteElo "2564"]
[BlackElo "2730"]
[TimeControl "180+1"]
[EndTime "9:55:24 PDT"]
[Termination "WPWPWP-2015 won on time"]

1. e4 {[%clk 0:02:49.5]} 1... c5 {[%clk 0:02:59.7]} 2. Nf3 {[%clk 0:02:48.4]}
2... Nc6 {[%clk 0:03:00]} 3. Bb5 {[%clk 0:02:48.1]} 3... a6 {[%clk 0:02:58]} 4.
Bxc6 {[%clk 0:02:47.2]} 4... dxc6 {[%clk 0:02:58.9]} 5. d3 {[%clk 0:02:47.3]}
5... Bg4 {[%clk 0:02:55.6]} 6. h3 {[%clk 0:02:47]} 6... Bxf3 {[%clk 0:02:54.8]}
7. Qxf3 {[%clk 0:02:46.7]} 7... e5 {[%clk 0:02:54.8]} 8. Nd2 {[%clk 0:02:45.2]}
8... Bd6 {[%clk 0:02:48.7]} 9. O-O {[%clk 0:02:45]} 9... Ne7 {[%clk 0:02:48.1]}
10. Nc4 {[%clk 0:02:44.7]} 10... O-O {[%clk 0:02:44.7]} 11. Ne3 {[%clk
0:02:43.3]} 11... b5 {[%clk 0:02:37.3]} 12. g3 {[%clk 0:02:37.4]} 12... Qd7
{[%clk 0:02:34.8]} 13. Kg2 {[%clk 0:02:35.6]} 13... f5 {[%clk 0:02:15.5]} 14.
exf5 {[%clk 0:02:32.7]} 14... Nxf5 {[%clk 0:02:16.4]} 15. Nxf5 {[%clk
0:02:30.4]} 15... Rxf5 {[%clk 0:02:17.3]} 16. Qe4 {[%clk 0:02:25.4]} 16... Raf8
{[%clk 0:02:17.8]} 17. Be3 {[%clk 0:02:23.7]} 17... Be7 {[%clk 0:02:11.8]} 18.
h4 {[%clk 0:02:17.4]} 18... Qd5 {[%clk 0:02:05.7]} 19. a4 {[%clk 0:02:13.6]}
19... b4 {[%clk 0:01:32.1]} 20. b3 {[%clk 0:02:12.6]} 20... Kh8 {[%clk
0:01:30.4]} 21. Rae1 {[%clk 0:02:10.1]} 21... Bd6 {[%clk 0:01:23.6]} 22. Re2
{[%clk 0:02:08.7]} 22... h6 {[%clk 0:01:20.6]} 23. Bc1 {[%clk 0:01:53.8]} 23...
Bc7 {[%clk 0:00:46.5]} 24. Bb2 {[%clk 0:01:52.1]} 24... Qe6 {[%clk 0:00:43.4]}
25. f3 {[%clk 0:01:47]} 25... Qf6 {[%clk 0:00:38.4]} 26. Bc1 {[%clk 0:01:41.8]}
26... Qd6 {[%clk 0:00:36.7]} 27. g4 {[%clk 0:01:38.1]} 27... R5f7 {[%clk
0:00:34.7]} 28. h5 {[%clk 0:01:37.1]} 28... Qd5 {[%clk 0:00:32]} 29. Be3 {[%clk
0:01:29.7]} 29... Bd6 {[%clk 0:00:27.4]} 30. Ref2 {[%clk 0:01:21.6]} 30... Rf6
{[%clk 0:00:24.8]} 31. Re1 {[%clk 0:01:20]} 31... a5 {[%clk 0:00:25]} 32. Ref1
{[%clk 0:01:19.8]} 32... Kg8 {[%clk 0:00:24.5]} 33. Re2 {[%clk 0:01:19]} 33...
Be7 {[%clk 0:00:20.5]} 34. Bg1 {[%clk 0:01:12.8]} 34... Bd6 {[%clk 0:00:19.6]}
35. Bh2 {[%clk 0:01:12.3]} 35... Re8 {[%clk 0:00:16.3]} 36. Bg3 {[%clk
0:01:11.5]} 36... Rff8 {[%clk 0:00:14.5]} 37. Rfe1 {[%clk 0:01:10.4]} 37... Qf7
{[%clk 0:00:12.2]} 38. Rf1 {[%clk 0:01:09]} 38... Qd5 {[%clk 0:00:09.6]} 39.
Rff2 {[%clk 0:01:08.5]} 39... Rf6 {[%clk 0:00:09.2]} 40. Rf1 {[%clk 0:01:06.1]}
40... Bc7 {[%clk 0:00:09]} 41. Rfe1 {[%clk 0:01:04.9]} 41... Ref8 {[%clk
0:00:08.5]} 42. Rf2 {[%clk 0:01:02.8]} 42... Qd7 {[%clk 0:00:07.4]} 43. Bxe5
{[%clk 0:00:53.1]} 43... Re6 {[%clk 0:00:07]} 44. Qc4 {[%clk 0:00:52.2]} 44...
Kh8 {[%clk 0:00:05.6]} 45. Rfe2 {[%clk 0:00:44.9]} 45... Bxe5 {[%clk 0:00:05]}
46. Rxe5 {[%clk 0:00:44]} 46... Ref6 {[%clk 0:00:05.4]} 47. R5e3 {[%clk
0:00:40.2]} 47... Qd6 {[%clk 0:00:06]} 48. Rf1 {[%clk 0:00:32.9]} 48... Rf4
{[%clk 0:00:05.6]} 49. Qe6 {[%clk 0:00:33]} 49... Qd4 {[%clk 0:00:06]} 50. Qe5
{[%clk 0:00:30.6]} 50... Qd8 {[%clk 0:00:03.8]} 51. Qe7 {[%clk 0:00:27.5]} 51...
Qd5 {[%clk 0:00:03.4]} 52. Re4 {[%clk 0:00:22]} 52... R4f7 {[%clk 0:00:03.4]}
53. Qe5 {[%clk 0:00:19.2]} 53... Qd8 {[%clk 0:00:03.6]} 54. Qxc5 {[%clk
0:00:17.2]} 54... Qh4 {[%clk 0:00:04.2]} 55. Qf2 {[%clk 0:00:16.9]} 55... Qg5
{[%clk 0:00:04]} 56. Qe3 {[%clk 0:00:17.1]} 56... Qh4 {[%clk 0:00:04.1]} 57. Rf2
{[%clk 0:00:17.1]} 57... Qf6 {[%clk 0:00:03.7]} 58. Re6 {[%clk 0:00:15.5]} 58...
Qc3 {[%clk 0:00:03.1]} 59. Re4 {[%clk 0:00:14.5]} 59... Qa1 {[%clk 0:00:02.8]}
60. Rc4 {[%clk 0:00:13.5]} 60... Qf6 {[%clk 0:00:02.5]} 61. Rc5 {[%clk
0:00:13.1]} 61... Re7 {[%clk 0:00:02.6]} 62. Qd2 {[%clk 0:00:11.9]} 62... Qh4
{[%clk 0:00:03]} 63. Rxc6 {[%clk 0:00:08.1]} 63... Rfe8 {[%clk 0:00:03.6]} 64.
Rc4 {[%clk 0:00:07.3]} 64... Re1 {[%clk 0:00:03.2]} 65. Qxe1 {[%clk 0:00:02.4]}
65... Qxh5 {[%clk 0:00:03.2]} 66. Qxe8+ {[%clk 0:00:01.5]} 66... Qxe8 {[%clk
0:00:03.1]} 67. Re4 {[%clk 0:00:02.2]} 67... Qf8 {[%clk 0:00:03.5]} 68. Rfe2
{[%clk 0:00:02.7]} 68... Qc5 {[%clk 0:00:04.1]} 69. Re8+ {[%clk 0:00:02.8]}
69... Kh7 {[%clk 0:00:04.9]} 70. R8e5 {[%clk 0:00:03.4]} 70... Qc7 {[%clk
0:00:04.8]} 71. R5e4 {[%clk 0:00:04]} 71... Qc6 {[%clk 0:00:04.8]} 72. Re7
{[%clk 0:00:04.2]} 72... Qg6 {[%clk 0:00:04.8]} 73. R7e6 {[%clk 0:00:04.5]}
73... Qg5 {[%clk 0:00:05]} 74. Re8 {[%clk 0:00:04.4]} 74... h5 {[%clk
0:00:05.2]} 75. R8e4 {[%clk 0:00:04.1]} 75... h4 {[%clk 0:00:05.4]} 76. Kh3
{[%clk 0:00:01.4]} 76... Qf6 {[%clk 0:00:05.4]} 77. R4e3 {[%clk 0:00:01.1]}
77... Qf4 {[%clk 0:00:05.1]} 78. Kxh4 {[%clk 0:00:01.3]} 78... Qc7 {[%clk
0:00:03.8]} 79. Kh3 {[%clk 0:00:01.4]} 79... Kh6 {[%clk 0:00:03.7]} 80. Kg2
{[%clk 0:00:01.7]} 80... Qc3 {[%clk 0:00:03.8]} 81. Re6+ {[%clk 0:00:01.5]}
81... g6 {[%clk 0:00:03.1]} 82. R6e5 {[%clk 0:00:01.6]} 82... Qc7 {[%clk
0:00:03.1]} 83. Re7 {[%clk 0:00:01.3]} 83... Qf4 {[%clk 0:00:02.8]} 84. R7e4
{[%clk 0:00:01.4]} 84... Qc7 {[%clk 0:00:03]} 85. Re8 {[%clk 0:00:02]} 85... Qc3
{[%clk 0:00:02.8]} 86. R8e7 {[%clk 0:00:02.1]} 86... Kg5 {[%clk 0:00:03]} 87.
R7e5+ {[%clk 0:00:02.4]} 87... Kh4 {[%clk 0:00:02.7]} 88. Re7 {[%clk 0:00:02.6]}
88... Kg5 {[%clk 0:00:02.1]} 89. R7e6 {[%clk 0:00:02.5]} 89... Qc7 {[%clk
0:00:01.7]} 90. R2e5+ {[%clk 0:00:02.1]} 90... Kh4 {[%clk 0:00:02.1]} 91. Re2
{[%clk 0:00:02]} 91... Qg3+ {[%clk 0:00:02.8]} 92. Kf1 {[%clk 0:00:02]} 92...
Qxf3+ {[%clk 0:00:02.9]} 93. Ke1 {[%clk 0:00:02.6]} 93... Qf4 {[%clk 0:00:02.8]}
94. R2e3 {[%clk 0:00:02.3]} 94... Qh2 {[%clk 0:00:02.2]} 95. Kd1 {[%clk
0:00:02.3]} 95... Qg1+ {[%clk 0:00:02.1]} 96. Re1 {[%clk 0:00:02.4]} 96... Qg2
{[%clk 0:00:01.3]} 97. R1e2 {[%clk 0:00:02.7]} 97... Qf3 {[%clk 0:00:01.2]} 98.
Re4 {[%clk 0:00:02.5]} 98... Qf1+ {[%clk 0:00:01.4]} 99. Kd2 {[%clk 0:00:02.9]}
99... Qa1 {[%clk 0:00:01.3]} 100. d4 {[%clk 0:00:02.6]} 1-0

[Event "Early-Titled-Tuesday-Blitz-October-24-2023"]
[Site "Chess.com"]
[Date "2023.10.24"]
[Round "11"]
[White "Boninknights"]
[Black "Iskusnyh"]
[Result "0-1"]
[WhiteElo "2314"]
[BlackElo "2569"]
[TimeControl "180+1"]
[EndTime "9:58:25 PDT"]
[Termination "Iskusnyh won by resignation"]

1. b3 {[%clk 0:03:00.9]} 1... e5 {[%clk 0:02:55.9]} 2. Bb2 {[%clk 0:02:58.8]}
2... Nc6 {[%clk 0:02:56.3]} 3. e3 {[%clk 0:02:57.6]} 3... d6 {[%clk 0:02:55.4]}
4. Bb5 {[%clk 0:02:54.3]} 4... Ne7 {[%clk 0:02:53.5]} 5. d4 {[%clk 0:02:52.6]}
5... a6 {[%clk 0:02:51.5]} 6. Bxc6+ {[%clk 0:02:52.1]} 6... Nxc6 {[%clk
0:02:52.4]} 7. dxe5 {[%clk 0:02:50.6]} 7... Nxe5 {[%clk 0:02:51.3]} 8. Bxe5
{[%clk 0:02:46.2]} 8... dxe5 {[%clk 0:02:50.9]} 9. Qxd8+ {[%clk 0:02:45.7]} 9...
Kxd8 {[%clk 0:02:50.9]} 10. Nf3 {[%clk 0:02:44.5]} 10... f6 {[%clk 0:02:48.1]}
11. Nbd2 {[%clk 0:02:44]} 11... Be6 {[%clk 0:02:46.3]} 12. O-O-O {[%clk
0:02:41.9]} 12... Ba3+ {[%clk 0:02:43.3]} 13. Kb1 {[%clk 0:02:40.4]} 13... Ke7
{[%clk 0:02:43.1]} 14. Ne4 {[%clk 0:02:32.3]} 14... Rhd8 {[%clk 0:02:37.4]} 15.
h3 {[%clk 0:02:26]} 15... a5 {[%clk 0:02:33.7]} 16. g4 {[%clk 0:02:21.4]} 16...
a4 {[%clk 0:02:33]} 17. Nc3 {[%clk 0:02:15.9]} 17... axb3 {[%clk 0:02:29.9]} 18.
cxb3 {[%clk 0:02:12]} 18... Bb4 {[%clk 0:02:25]} 19. Rxd8 {[%clk 0:02:01.7]}
19... Rxd8 {[%clk 0:02:22.5]} 20. Kc2 {[%clk 0:01:57.7]} 20... Bxc3 {[%clk
0:02:19.8]} 21. Kxc3 {[%clk 0:01:55.9]} 21... Bd5 {[%clk 0:02:19.5]} 0-1

[Event "Early-Titled-Tuesday-Blitz-October-24-2023"]
[Site "Chess.com"]
[Date "2023.10.24"]
[Round "11"]
[White "MokshAD1603"]
[Black "blitzking1729"]
[Result "0-1"]
[WhiteElo "2651"]
[BlackElo "2808"]
[TimeControl "180+1"]
[EndTime "9:58:53 PDT"]
[Termination "blitzking1729 won by resignation"]

1. c4 {[%clk 0:03:00.9]} 1... Nf6 {[%clk 0:02:57.4]} 2. g3 {[%clk 0:02:59.5]}
2... e5 {[%clk 0:02:54.8]} 3. Bg2 {[%clk 0:02:59.7]} 3... c6 {[%clk 0:02:55.1]}
4. Nf3 {[%clk 0:02:59.3]} 4... e4 {[%clk 0:02:54.9]} 5. Nd4 {[%clk 0:02:59.7]}
5... Bc5 {[%clk 0:02:53.8]} 6. Nb3 {[%clk 0:02:57.2]} 6... Bb6 {[%clk
0:02:53.7]} 7. c5 {[%clk 0:02:57.3]} 7... Bc7 {[%clk 0:02:53.8]} 8. Nc3 {[%clk
0:02:57.5]} 8... d5 {[%clk 0:02:39.5]} 9. cxd6 {[%clk 0:02:57.6]} 9... Qxd6
{[%clk 0:02:39.7]} 10. Nxe4 {[%clk 0:02:37.8]} 10... Nxe4 {[%clk 0:02:38.8]} 11.
Bxe4 {[%clk 0:02:38.7]} 11... Bh3 {[%clk 0:02:39.2]} 12. d3 {[%clk 0:02:38.1]}
12... Qe6 {[%clk 0:02:28.8]} 13. Nc5 {[%clk 0:02:32.8]} 13... Qe7 {[%clk
0:02:29.1]} 14. Nxb7 {[%clk 0:02:25.8]} 14... Qb4+ {[%clk 0:02:27.8]} 15. Bd2
{[%clk 0:02:20.3]} 15... Qxb7 {[%clk 0:02:27.3]} 16. Bc3 {[%clk 0:02:21.2]}
16... O-O {[%clk 0:02:22.9]} 17. Qd2 {[%clk 0:02:19.7]} 17... f5 {[%clk
0:02:14]} 18. Qg5 {[%clk 0:02:15.7]} 18... Bd8 {[%clk 0:02:04.1]} 0-1

[Event "Early-Titled-Tuesday-Blitz-October-24-2023"]
[Site "Chess.com"]
[Date "2023.10.24"]
[Round "11"]
[White "dawid498"]
[Black "GlavkonVVS"]
[Result "1-0"]
[WhiteElo "2672"]
[BlackElo "2529"]
[TimeControl "180+1"]
[EndTime "9:59:34 PDT"]
[Termination "dawid498 won by resignation"]

1. e4 {[%clk 0:03:00.9]} 1... c5 {[%clk 0:03:00.1]} 2. Nc3 {[%clk 0:03:00.6]}
2... d6 {[%clk 0:03:00.5]} 3. f4 {[%clk 0:03:00.4]} 3... Nc6 {[%clk 0:03:00.7]}
4. Nf3 {[%clk 0:03:01.1]} 4... g6 {[%clk 0:03:01.4]} 5. Bc4 {[%clk 0:02:58.9]}
5... Bg7 {[%clk 0:03:01.5]} 6. d3 {[%clk 0:02:59.5]} 6... e6 {[%clk 0:03:02]} 7.
O-O {[%clk 0:02:58.8]} 7... Nge7 {[%clk 0:03:02.6]} 8. Qe1 {[%clk 0:02:59]} 8...
O-O {[%clk 0:03:02]} 9. f5 {[%clk 0:02:54.6]} 9... exf5 {[%clk 0:02:48]} 10. Qh4
{[%clk 0:02:54.5]} 10... Ne5 {[%clk 0:02:31.7]} 11. Nxe5 {[%clk 0:02:10.6]}
11... dxe5 {[%clk 0:02:31.3]} 12. Bg5 {[%clk 0:01:59.5]} 12... Qd4+ {[%clk
0:02:31.1]} 13. Kh1 {[%clk 0:02:00.2]} 13... Nc6 {[%clk 0:02:31.3]} 14. Nd5
{[%clk 0:01:52.5]} 14... h5 {[%clk 0:01:30.9]} 15. c3 {[%clk 0:01:49.9]} 15...
Qxc4 {[%clk 0:01:20.7]} 16. dxc4 {[%clk 0:01:50.8]} 16... fxe4 {[%clk
0:01:16.3]} 17. Nf6+ {[%clk 0:01:50]} 17... Bxf6 {[%clk 0:01:15.8]} 18. Bxf6
{[%clk 0:01:50.9]} 18... Kh7 {[%clk 0:01:15.5]} 19. Qxe4 {[%clk 0:01:49.2]}
19... Be6 {[%clk 0:01:12.3]} 20. Rad1 {[%clk 0:01:47.5]} 1-0

[Event "Early-Titled-Tuesday-Blitz-October-24-2023"]
[Site "Chess.com"]
[Date "2023.10.24"]
[Round "11"]
[White "JG-17"]
[Black "Keeper0416"]
[Result "0-1"]
[WhiteElo "2483"]
[BlackElo "2576"]
[TimeControl "180+1"]
[EndTime "9:59:49 PDT"]
[Termination "Keeper0416 won by resignation"]

1. e4 {[%clk 0:03:00.9]} 1... c5 {[%clk 0:02:57.6]} 2. Nc3 {[%clk 0:03:00.2]}
2... Nc6 {[%clk 0:02:55.8]} 3. g3 {[%clk 0:03:00.7]} 3... g6 {[%clk 0:02:55.8]}
4. Bg2 {[%clk 0:03:01.2]} 4... Bg7 {[%clk 0:02:56.4]} 5. d3 {[%clk 0:03:01.8]}
5... e5 {[%clk 0:02:57]} 6. Be3 {[%clk 0:03:00.5]} 6... d6 {[%clk 0:02:56.6]} 7.
Qd2 {[%clk 0:03:01]} 7... Nge7 {[%clk 0:02:57]} 8. Bh6 {[%clk 0:03:01.2]} 8...
Bxh6 {[%clk 0:02:49.1]} 9. Qxh6 {[%clk 0:02:59.9]} 9... Nd4 {[%clk 0:02:50]} 10.
O-O-O {[%clk 0:02:58.5]} 10... b5 {[%clk 0:02:46.5]} 11. Qg7 {[%clk 0:02:51.6]}
11... Rg8 {[%clk 0:02:45.5]} 12. Qxh7 {[%clk 0:02:51.8]} 12... Qa5 {[%clk
0:02:46.2]} 13. Nd5 {[%clk 0:02:50.6]} 13... Qxa2 {[%clk 0:02:34.3]} 14. Nf6+
{[%clk 0:02:12]} 14... Kf8 {[%clk 0:02:26.8]} 15. Qh6+ {[%clk 0:02:01.8]} 15...
Rg7 {[%clk 0:02:26.2]} 16. Nh7+ {[%clk 0:01:57.7]} 16... Kg8 {[%clk 0:02:24.7]}
17. Nf6+ {[%clk 0:01:57.4]} 17... Kf8 {[%clk 0:02:25.1]} 18. Qh8+ {[%clk
0:01:57.4]} 18... Rg8 {[%clk 0:02:21.2]} 19. Nh7+ {[%clk 0:01:52.8]} 19... Ke8
{[%clk 0:02:19.6]} 20. Nf6+ {[%clk 0:01:53.4]} 20... Kf8 {[%clk 0:02:20.1]} 21.
Nxg8 {[%clk 0:01:53]} 21... Nxg8 {[%clk 0:02:20.1]} 22. Nf3 {[%clk 0:01:41.2]}
22... Qa1+ {[%clk 0:02:16.7]} 23. Kd2 {[%clk 0:01:41.1]} 23... Qxb2 {[%clk
0:02:17.6]} 24. Nxd4 {[%clk 0:01:30]} 24... cxd4 {[%clk 0:02:18.5]} 25. Rc1
{[%clk 0:01:26.7]} 25... Be6 {[%clk 0:02:11.5]} 26. h4 {[%clk 0:01:25.4]} 26...
Rc8 {[%clk 0:02:07.5]} 27. h5 {[%clk 0:01:23.9]} 27... Bb3 {[%clk 0:02:07.7]}
28. Rhd1 {[%clk 0:01:00.3]} 28... Rxc2+ {[%clk 0:02:05.9]} 0-1

[Event "Early-Titled-Tuesday-Blitz-October-24-2023"]
[Site "Chess.com"]
[Date "2023.10.24"]
[Round "11"]
[White "ExcitingTrap"]
[Black "ExchangeAB"]
[Result "1-0"]
[WhiteElo "2433"]
[BlackElo "2539"]
[TimeControl "180+1"]
[EndTime "10:00:21 PDT"]
[Termination "ExcitingTrap won by resignation"]

1. e4 {[%clk 0:03:00.9]} 1... c6 {[%clk 0:02:59.7]} 2. d4 {[%clk 0:03:00.1]}
2... d5 {[%clk 0:03:00.6]} 3. e5 {[%clk 0:03:00.7]} 3... Bf5 {[%clk 0:03:00.4]}
4. h4 {[%clk 0:03:00.8]} 4... h5 {[%clk 0:03:00.4]} 5. Bd3 {[%clk 0:03:01]} 5...
Bxd3 {[%clk 0:03:01.1]} 6. Qxd3 {[%clk 0:03:01.9]} 6... e6 {[%clk 0:03:02]} 7.
Nf3 {[%clk 0:03:02.5]} 7... Qa5+ {[%clk 0:03:02.5]} 8. Nbd2 {[%clk 0:03:02.5]}
8... Qa6 {[%clk 0:03:02.5]} 9. c4 {[%clk 0:03:01]} 9... Bb4 {[%clk 0:03:03.1]}
10. O-O {[%clk 0:02:55.3]} 10... Ne7 {[%clk 0:02:57.8]} 11. a4 {[%clk
0:02:44.3]} 11... Nd7 {[%clk 0:02:56]} 12. b3 {[%clk 0:02:41.2]} 12... c5 {[%clk
0:02:53.6]} 13. Qc2 {[%clk 0:02:29]} 13... Bxd2 {[%clk 0:02:51.7]} 14. Bxd2
{[%clk 0:02:28]} 14... dxc4 {[%clk 0:02:51.2]} 15. bxc4 {[%clk 0:02:25.6]} 15...
cxd4 {[%clk 0:02:50.4]} 16. Nxd4 {[%clk 0:02:10.3]} 16... Nxe5 {[%clk
0:02:49.2]} 17. Nb5 {[%clk 0:02:10.8]} 17... O-O-O {[%clk 0:02:37.4]} 18. Bf4
{[%clk 0:02:02.4]} 18... N7c6 {[%clk 0:02:29.2]} 19. Qe4 {[%clk 0:01:50.3]}
19... f6 {[%clk 0:02:27.9]} 20. c5 {[%clk 0:01:39.2]} 20... Qa5 {[%clk
0:02:19.3]} 21. Rab1 {[%clk 0:01:32.8]} 21... Rd7 {[%clk 0:01:28.9]} 22. Nd6+
{[%clk 0:01:18.2]} 22... Kb8 {[%clk 0:01:25.8]} 23. Bxe5 {[%clk 0:01:15.7]}
23... fxe5 {[%clk 0:01:25.9]} 24. Qxc6 {[%clk 0:01:13.9]} 24... Qc7 {[%clk
0:01:19.4]} 25. Rxb7+ {[%clk 0:01:06.8]} 1-0

[Event "Early-Titled-Tuesday-Blitz-October-24-2023"]
[Site "Chess.com"]
[Date "2023.10.24"]
[Round "11"]
[White "SlippperyWhenWet"]
[Black "LiadCuba"]
[Result "0-1"]
[WhiteElo "2353"]
[BlackElo "2364"]
[TimeControl "180+1"]
[EndTime "10:00:26 PDT"]
[Termination "LiadCuba won by resignation"]

1. e4 {[%clk 0:03:00.9]} 1... c5 {[%clk 0:02:52.5]} 2. Nf3 {[%clk 0:02:59.4]}
2... d6 {[%clk 0:02:52.7]} 3. d4 {[%clk 0:02:57.5]} 3... cxd4 {[%clk 0:02:53.6]}
4. Nxd4 {[%clk 0:02:57.8]} 4... Nf6 {[%clk 0:02:54]} 5. Nc3 {[%clk 0:02:57.9]}
5... a6 {[%clk 0:02:53.5]} 6. Bd2 {[%clk 0:02:57.7]} 6... e6 {[%clk 0:02:48.3]}
7. Bd3 {[%clk 0:02:55.9]} 7... b5 {[%clk 0:02:48.1]} 8. a3 {[%clk 0:02:55.3]}
8... Bb7 {[%clk 0:02:48.4]} 9. O-O {[%clk 0:02:55.1]} 9... Be7 {[%clk 0:02:46]}
10. h3 {[%clk 0:02:47]} 10... O-O {[%clk 0:02:46.9]} 11. Qe2 {[%clk 0:02:41.4]}
11... Nc6 {[%clk 0:02:47.8]} 12. Nxc6 {[%clk 0:02:40.9]} 12... Bxc6 {[%clk
0:02:48.7]} 13. Rae1 {[%clk 0:02:41.2]} 13... Qc7 {[%clk 0:02:39.3]} 14. f4
{[%clk 0:02:40.2]} 14... Rfb8 {[%clk 0:02:35.8]} 15. e5 {[%clk 0:02:32.1]} 15...
Nd5 {[%clk 0:02:32.4]} 16. Ne4 {[%clk 0:02:28.2]} 16... dxe5 {[%clk 0:02:28.4]}
17. f5 {[%clk 0:02:22.8]} 17... exf5 {[%clk 0:02:19.9]} 18. Rxf5 {[%clk
0:02:23.5]} 18... Nf4 {[%clk 0:02:19.3]} 19. Rxf4 {[%clk 0:01:43.1]} 19... exf4
{[%clk 0:02:20.2]} 20. Qh5 {[%clk 0:01:42.8]} 20... Bxe4 {[%clk 0:02:06.5]} 21.
Bxe4 {[%clk 0:01:40.5]} 21... Qc5+ {[%clk 0:02:07.4]} 22. Qxc5 {[%clk
0:01:38.2]} 22... Bxc5+ {[%clk 0:02:08.3]} 23. Kh2 {[%clk 0:01:38.9]} 23... Bf2
{[%clk 0:01:57.5]} 24. Re2 {[%clk 0:01:25]} 24... Bg3+ {[%clk 0:01:51.8]} 25.
Kh1 {[%clk 0:01:25.1]} 25... Re8 {[%clk 0:01:47.8]} 26. b3 {[%clk 0:01:20.6]}
26... Re6 {[%clk 0:01:42]} 27. a4 {[%clk 0:00:59.7]} 27... Rae8 {[%clk
0:01:35.2]} 28. axb5 {[%clk 0:00:54.2]} 28... axb5 {[%clk 0:01:30.8]} 0-1

[Event "Early-Titled-Tuesday-Blitz-October-24-2023"]
[Site "Chess.com"]
[Date "2023.10.24"]
[Round "11"]
[White "esrosenberg"]
[Black "HanSchut"]
[Result "1-0"]
[WhiteElo "2456"]
[BlackElo "2298"]
[TimeControl "180+1"]
[EndTime "10:00:33 PDT"]
[Termination "esrosenberg won by resignation"]

1. d4 {[%clk 0:03:00.9]} 1... Nf6 {[%clk 0:02:59.4]} 2. Nf3 {[%clk 0:03:01.6]}
2... g6 {[%clk 0:02:59.6]} 3. Nc3 {[%clk 0:03:01.8]} 3... d5 {[%clk 0:02:59.5]}
4. Bf4 {[%clk 0:03:02.5]} 4... Bg7 {[%clk 0:02:59.1]} 5. Nb5 {[%clk 0:03:03.2]}
5... Na6 {[%clk 0:02:58.2]} 6. e3 {[%clk 0:03:03.8]} 6... O-O {[%clk 0:02:51.6]}
7. h3 {[%clk 0:03:04.3]} 7... c6 {[%clk 0:02:46.6]} 8. Nc3 {[%clk 0:03:04.6]}
8... Nc7 {[%clk 0:02:45]} 9. Bd3 {[%clk 0:03:01.6]} 9... Ne6 {[%clk 0:02:27.9]}
10. Be5 {[%clk 0:03:00.5]} 10... c5 {[%clk 0:02:22.2]} 11. O-O {[%clk
0:02:58.5]} 11... c4 {[%clk 0:02:12.4]} 12. Be2 {[%clk 0:02:58.4]} 12... a6
{[%clk 0:01:55.5]} 13. a4 {[%clk 0:02:57.9]} 13... Qd7 {[%clk 0:01:32.4]} 14.
Re1 {[%clk 0:02:54.5]} 14... b6 {[%clk 0:01:31.9]} 15. Bh2 {[%clk 0:02:38]}
15... Bb7 {[%clk 0:01:30.6]} 16. Ne5 {[%clk 0:02:38.7]} 16... Qe8 {[%clk
0:01:24.9]} 17. Bf3 {[%clk 0:02:39.3]} 17... b5 {[%clk 0:01:19.4]} 18. axb5
{[%clk 0:02:38.9]} 18... axb5 {[%clk 0:01:20.3]} 19. Rxa8 {[%clk 0:02:38.9]}
19... Bxa8 {[%clk 0:01:20.4]} 20. Qa1 {[%clk 0:02:32.2]} 20... b4 {[%clk
0:01:19.3]} 21. Na4 {[%clk 0:02:01.5]} 21... Ng5 {[%clk 0:01:11]} 22. Nb6 {[%clk
0:01:56.2]} 22... Nxf3+ {[%clk 0:01:09.2]} 23. Nxf3 {[%clk 0:01:52.2]} 23... Nd7
{[%clk 0:01:05.5]} 24. Qa7 {[%clk 0:01:33.3]} 24... Nxb6 {[%clk 0:01:03]} 25.
Qxb6 {[%clk 0:01:34.2]} 25... Qc6 {[%clk 0:00:59.7]} 26. Qxb4 {[%clk 0:01:33.9]}
26... Rb8 {[%clk 0:00:47.7]} 27. Qxb8+ {[%clk 0:01:32.3]} 1-0

[Event "Early-Titled-Tuesday-Blitz-October-24-2023"]
[Site "Chess.com"]
[Date "2023.10.24"]
[Round "11"]
[White "Xqswdc"]
[Black "HajiyevKanan"]
[Result "1-0"]
[WhiteElo "2354"]
[BlackElo "2523"]
[TimeControl "180+1"]
[EndTime "10:00:36 PDT"]
[Termination "Xqswdc won by resignation"]

1. Nf3 {[%clk 0:03:00.9]} 1... d5 {[%clk 0:02:59.7]} 2. b3 {[%clk 0:02:59.4]}
2... Nf6 {[%clk 0:03:00.1]} 3. Bb2 {[%clk 0:02:59.9]} 3... g6 {[%clk 0:03:00.8]}
4. e3 {[%clk 0:02:59.7]} 4... Bg7 {[%clk 0:03:01.5]} 5. c4 {[%clk 0:03:00.3]}
5... Nh5 {[%clk 0:03:02.2]} 6. Bxg7 {[%clk 0:02:59.1]} 6... Nxg7 {[%clk
0:03:03.1]} 7. cxd5 {[%clk 0:02:59.7]} 7... Qxd5 {[%clk 0:03:03.5]} 8. Nc3
{[%clk 0:03:00.3]} 8... Qh5 {[%clk 0:03:02.9]} 9. Be2 {[%clk 0:03:00.3]} 9...
O-O {[%clk 0:03:03]} 10. d4 {[%clk 0:02:59.6]} 10... Nd7 {[%clk 0:02:59.9]} 11.
Ne5 {[%clk 0:02:59.1]} 11... Qg5 {[%clk 0:02:56.1]} 12. h4 {[%clk 0:02:58.2]}
12... Qf5 {[%clk 0:02:42.4]} 13. Bg4 {[%clk 0:02:48.6]} 13... Qf6 {[%clk
0:02:30.9]} 14. Nxd7 {[%clk 0:02:35]} 14... Qc6 {[%clk 0:02:22.6]} 15. Nc5
{[%clk 0:02:11.3]} 15... Bxg4 {[%clk 0:02:01.4]} 16. Qxg4 {[%clk 0:02:11]} 16...
b6 {[%clk 0:01:58.3]} 17. Qe4 {[%clk 0:02:07]} 17... Qe8 {[%clk 0:01:39.7]} 18.
Nd3 {[%clk 0:01:55.2]} 18... f5 {[%clk 0:01:32.8]} 19. Qe5 {[%clk 0:01:49.2]}
19... Rc8 {[%clk 0:01:29.6]} 20. Nf4 {[%clk 0:01:42.4]} 20... Qc6 {[%clk
0:01:28.8]} 21. Rc1 {[%clk 0:01:40.2]} 21... e6 {[%clk 0:01:22.1]} 22. O-O
{[%clk 0:01:38]} 22... Qd7 {[%clk 0:01:18.6]} 23. d5 {[%clk 0:01:35.5]} 23...
Rfe8 {[%clk 0:01:13.2]} 24. dxe6 {[%clk 0:01:34.5]} 24... Nxe6 {[%clk
0:01:13.8]} 25. Ncd5 {[%clk 0:01:30.2]} 25... Nxf4 {[%clk 0:01:07.7]} 26. Nf6+
{[%clk 0:01:29.7]} 26... Kf7 {[%clk 0:01:08]} 27. Nxd7 {[%clk 0:01:29.7]} 27...
Ne2+ {[%clk 0:01:06.4]} 28. Kh2 {[%clk 0:01:26.8]} 28... Rxe5 {[%clk 0:01:06.1]}
29. Nxe5+ {[%clk 0:01:26.8]} 29... Ke6 {[%clk 0:01:06.8]} 30. Rc2 {[%clk
0:01:20.5]} 1-0